fUSD/lending_fUSD_20251128
["ID","MTS","AMOUNT","RATE_DAILY","PERIOD"]
[395014649,1764330648185,-199.0,0.0004098,7]
[395014650,1764330648194,-9851.85699507,0.0004098,4]
[395014651,1764330648204,-53335.646262,0.0004098,4]
[395014652,1764330648213,-250.72416972,0.00040986,7]
[395014653,1764330648223,-150.0,0.00040986,7]
[395014654,1764330648232,-150.0,0.00040986,7]
[395014655,1764330648242,-5926.182918,0.00040989,4]
[395014656,1764330648251,-353.25263074,0.00040989,120]
[395014657,1764330648260,-311.1,0.00040989,7]
[395014658,1764330648269,-322.6107,0.00040989,7]
[395014659,1764330648279,-265.41065749,0.00040989,7]
[395014660,1764330648288,-500.0,0.00040989,7]
[395014661,1764330648298,-500.0,0.00040989,7]
[395014662,1764330648307,-625.65297059,0.00040989,7]
[395014663,1764330648317,-500.0,0.00040989,7]
[395014664,1764330648327,-500.0,0.00040989,7]
[395014665,1764330648336,-500.0,0.00040989,7]
[395014666,1764330648346,-161.23600939,0.00040989,7]
[395014667,1764330648355,-1000.0,0.00040989,7]
[395014668,1764330648364,-500.0,0.00040989,30]
[395014669,1764330648374,-1651.32,0.00040989,2]
[395014670,1764330648383,-41483.280426,0.0004099,4]
[395014671,1764330648393,-5500.0,0.0004099,30]
[395014672,1764330648402,-272604.414228,0.0004099,4]
[395014673,1764330648411,-150.0,0.00040999,20]
[395014674,1764330648420,-300.0,0.00040999,31]
[395014675,1764330648430,-150.0,0.00040999,41]
[395014676,1764330648439,-500.0,0.00040999,31]
[395014677,1764330648448,-500.0,0.00040999,41]
[395014678,1764330648457,-520.0,0.00040999,31]
[395014679,1764330648466,-539.24,0.00040999,41]
[395014680,1764330648475,-500.0,0.00040999,31]
[395014681,1764330648485,-500.0,0.00040999,41]
[395014682,1764330648499,-150.0,0.00040999,41]
[395014683,1764330648508,-150.0,0.00040999,41]
[395014684,1764330648519,-1000.0,0.00040999,2]
[395014685,1764330648528,-1000.0,0.00040999,7]
[395014686,1764330648538,-1000.0,0.00040999,7]
[395014687,1764330648547,-500.0,0.00040999,30]
[395014688,1764330648558,-500.0,0.00040999,30]
[395014689,1764330648567,-500.0,0.00040999,30]
[395014690,1764330648577,-500.0,0.00040999,30]
[395014691,1764330648587,-500.0,0.00040999,30]
[395014692,1764330648596,-524.07793001,0.00040999,30]
[395014693,1764330648605,-2048.0,0.00040999,5]
[395014694,1764330648615,-79083.41073112,0.00041,21]
[395014695,1764330648625,-239807.07145759,0.00041,2]
[395014905,1764331832402,-161.29,0.00019982,2]
[395014906,1764331832411,-195.0,0.0002198,2]
[395014907,1764331832420,-250.0,0.0002198,2]
[395014908,1764331832430,-187.65676147,0.00022979,7]
[395014909,1764331832439,-179.28100155,0.00024563,2]
[395014910,1764331832448,-1142.0,0.00024663,2]
[395014911,1764331832457,-150.0,0.00024664,2]
[395014912,1764331832467,-150.0,0.00024664,2]
[395014913,1764331832476,-150.0,0.00024664,2]
[395014914,1764331832485,-150.0,0.00024664,2]
[395014915,1764331832494,-150.0,0.00024664,2]
[395014916,1764331832503,-150.0,0.00024664,2]
[395014917,1764331832512,-150.0,0.00024664,2]
[395014918,1764331832521,-259.01,0.00024664,2]
[395014919,1764331832530,-187.65676147,0.000257,2]
[395014920,1764331832539,-937.91358927,0.00026757,2]
[395014921,1764331832548,-299.99,0.00029974,12]
[395014922,1764331832558,-9999.99,0.00029974,2]
[395014923,1764331832567,-150.99,0.00029974,2]
[395014924,1764331832576,-1991.14,0.00029974,90]
[395014925,1764331832585,-9999.99,0.00029974,2]
[395014926,1764331832595,-2852.13,0.00029974,2]
[395014927,1764331832606,-161.29,0.00029974,2]
[395014928,1764331832615,-1000.0,0.00033898,6]
[395014929,1764331832625,-1000.0,0.00034484,7]
[395014930,1764331832636,-695.0,0.000369,2]
[395014931,1764331832646,-404.56211538,0.0003717,2]
[395014932,1764331832655,-2512.41,0.00037326,2]
[395014933,1764331832664,-480.00015031,0.00037859,30]
[395014935,1764331832673,-150.0,0.00038325,2]
[395014936,1764331832682,-184.69249145,0.00038356,2]
[395014938,1764331832691,-168.63949854,0.00038356,5]
[395014940,1764331832701,-438.65113626,0.00038652,2]
[395014941,1764331832712,-888.72,0.00038662,5]
[395014942,1764331832722,-1087.6448054,0.00038684,5]
[395014944,1764331832731,-890.71,0.0003872,5]
[395014946,1764331832739,-500.0,0.00038738,2]
[395014948,1764331832748,-872.9,0.0003879,5]
[395014950,1764331832757,-868.73,0.00038875,5]
[395014951,1764331832766,-1865.3548,0.00038888,30]
[395014952,1764331832775,-500.0,0.00038969,8]
[395014953,1764331832783,-861.63,0.00038976,5]
[395014954,1764331832796,-1000.0,0.00039052,2]
[395014955,1764331832805,-861.66,0.00039098,5]
[395014956,1764331832814,-881.39,0.0003924,5]
[395014958,1764331832823,-343.09,0.00039386,120]
[395014960,1764331832833,-877.81,0.00039454,5]
[395014962,1764331832842,-179.28100155,0.00039645,2]
[395014964,1764331832852,-6222.78116712,0.00039745,2]
[395014966,1764331832864,-841.29844284,0.00039745,2]
[395014967,1764331832933,-875.32682699,0.00039745,2]
[395014968,1764331832944,-2097.08083201,0.00039745,2]
[395014969,1764331832954,-166.591,0.00039745,55]
[395014970,1764331832963,-207.2616,0.0003981,7]
[395014971,1764331832972,-161.29,0.00039965,2]
[395014972,1764331832982,-274.02333203,0.00039999,3]
[395014973,1764331832994,-298.77744301,0.00039999,3]
[395014974,1764331833006,-427.19922496,0.00039999,3]
[395014975,1764331833015,-678.45689067,0.0004,30]
[395014976,1764331833024,-500.0,0.0004,3]
[395014977,1764331833033,-1031.0,0.0004,120]
[395014978,1764331833043,-10148.38786868,0.0004,30]
[395014979,1764331833052,-707.05,0.0004,30]
[395014980,1764331833062,-692.52,0.0004,30]
[395014981,1764331833071,-694.6,0.0004,30]
[395014982,1764331833079,-706.88,0.0004,30]
[395014983,1764331833089,-709.11,0.0004,30]
[395014984,1764331833098,-693.64,0.0004,30]
[395014985,1764331833107,-710.83,0.0004,30]
[395014986,1764331833117,-698.67,0.0004,30]
[395014987,1764331833126,-694.3,0.0004,30]
[395014988,1764331833135,-254.08316459,0.0004,30]
[395014989,1764331838299,-448.43683541,0.0004,30]
[395014990,1764331838309,-709.26,0.0004,30]
[395014991,1764331838318,-692.03,0.0004,30]
[395014992,1764331838327,-692.33,0.0004,30]
[395014993,1764331838335,-713.92,0.0004,30]
[395014994,1764331838344,-703.66,0.0004,30]
[395014995,1764331838540,-710.68,0.0004,30]
[395014996,1764331838549,-713.14,0.0004,30]
[395014997,1764331838557,-686.79,0.00040002,30]
[395014998,1764331838565,-690.92,0.00040009,30]
[395014999,1764331838571,-713.23,0.00040046,30]
[395015000,1764331838578,-1000.0,0.00040133,7]
[395015001,1764331838585,-202.92281574,0.00040198,99]
[395015002,1764331838603,-97.35913926,0.00040198,99]
[395015003,1764331838610,-251.80538329,0.00040228,3]
[395015004,1764331838616,-689.6,0.00040228,30]
[395015006,1764331838627,-382.80294018,0.00040236,30]
[395015008,1764331838638,-310.94705982,0.00040236,30]
[395015010,1764331838647,-500.0,0.00040273,120]
[395015012,1764331838656,-123.50841911,0.00040273,20]
[395015014,1764331838667,-93.71391298,0.00040273,20]
[395015016,1764331838676,-706.42,0.00040373,30]
[395015018,1764331838686,-1000.0,0.00040427,7]
[395015020,1764331838695,-1400.0,0.00040428,14]
[395015022,1764331838704,-500.0,0.00040428,14]
[395015024,1764331838714,-1000.0,0.0004049,120]
[395015026,1764331838724,-500.0,0.000405,2]
[395015028,1764331838733,-500.90137957,0.000405,7]
[395015030,1764331838742,-500.0,0.00040545,31]
[395015032,1764331838751,-361.72199951,0.00040545,31]
[395015035,1764331838763,-500.0,0.00040545,31]
[395015037,1764331838772,-500.0,0.00040545,31]
[395015039,1764331838782,-500.0,0.00040545,31]
[395015041,1764331838796,-500.0,0.00040545,31]
[395015043,1764331838806,-500.0,0.00040545,31]
[395015045,1764331838816,-500.0,0.00040545,31]
[395015046,1764331838826,-500.0,0.00040547,120]
[395015048,1764331838838,-500.0,0.00040547,120]
[395015050,1764331838848,-484.83664753,0.0004076,120]
[395015053,1764331838858,-510.0,0.00040798,30]
[395015055,1764331838868,-553.00754347,0.00040821,120]
[395015057,1764331838878,-377.68645792,0.00040821,120]
[395015058,1764331838888,-2084.42776706,0.0004088,120]
[395015060,1764331838898,-1000.0,0.00040899,7]
[395015062,1764331838908,-1000.0,0.00040899,7]
[395015065,1764331838918,-5000.0,0.000409,120]
[395015066,1764331838928,-500.0,0.00040958,2]
[395015068,1764331838938,-1582.51,0.00040958,2]
[395015071,1764331838948,-1200.0,0.00040959,2]
[395015072,1764331838958,-1200.0,0.00040959,2]
[395015074,1764331838967,-1200.0,0.00040959,2]
[395015076,1764331838977,-1200.0,0.00040959,2]
[395015078,1764331838987,-1200.0,0.00040959,2]
[395015081,1764331838997,-202.97185222,0.00040959,2]
[395015083,1764331839009,-997.02814778,0.00040959,2]
[395015085,1764331839018,-1200.0,0.00040959,2]
[395015086,1764331839028,-473.26347335,0.00040973,5]
[395015089,1764331839040,-26.73652665,0.00040973,5]
[395015091,1764331839050,-472.477761,0.00040973,5]
[395015093,1764331839062,-29.19005804,0.00040973,5]
[395015095,1764331839072,-600.0,0.0004098,120]
[395015097,1764331839083,-515.33369288,0.0004098,120]
[395015099,1764331839092,-1000.0,0.00040988,7]
[395015101,1764331839101,-500.0,0.00040989,30]
[395015103,1764331839111,-500.0,0.00040989,30]
[395015105,1764331839120,-199.0,0.00040989,7]
[395015107,1764331839130,-1000.0,0.00040989,4]
[395015109,1764331839139,-390.80696266,0.00040989,31]
[395015111,1764331839148,-236.62253121,0.00040989,31]
[395015112,1764331839157,-500.0,0.00040989,2]
[395015113,1764331839168,-4381.06928883,0.0004099,4]
[395015114,1764331839180,-2576.0915,0.0004099,4]
[395015126,1764331840707,-24678.1547668,0.0004099,4]
[395015127,1764331840717,-4378.22892304,0.0004099,4]
[395015128,1764331840729,-2540.5043997,0.0004099,4]
[395015129,1764331840740,-1608.1835712,0.0004099,4]
[395015131,1764331840749,-942.02555889,0.0004099,4]
[395015155,1764331846413,-1533.61801,0.0004099,4]
[395015160,1764332707809,10000.01,0.00017,2]
[395015161,1764332707837,865311.0,0.00017,2]
[395015174,1764333031799,-234.0,0.00016999,2]
[395015177,1764333031808,-273.56487386,0.00016999,2]
[395015180,1764333031817,-165.63577185,0.00016999,2]
[395015182,1764333031826,-429.08022217,0.00016999,2]
[395015185,1764333031836,-1596.49661359,0.00017,2]
[395015189,1764333031847,-1501.99056459,0.00017,2]
[395015192,1764333031858,-517.14854657,0.00017,2]
[395015196,1764333031868,-466.29434677,0.00017,2]
[395015199,1764333031882,-1795.22834089,0.00017,2]
[395015203,1764333031893,-1868.08198722,0.00017,2]
[395015504,1764333037434,-5004.93507344,0.00017,2]
[395015505,1764333037445,-1120.43290127,0.00017,2]
[395015506,1764333037489,-54770.39087078,0.00017,2]
[395015507,1764333037500,-10992.39539457,0.00017,2]
[395015508,1764333037511,-10507.07940039,0.00017,2]
[395015509,1764333037555,-4141.776292,0.00017,2]
[395015510,1764333037568,-619.3089963,0.00017,2]
[395015511,1764333037578,-7477.4,0.00017,2]
[395015512,1764333037591,-437.27305822,0.00017,2]
[395015513,1764333037604,-987.18610805,0.00017,2]
[395015514,1764333037614,-499.98868071,0.00017,2]
[395015546,1764333039584,-4012.1106964,0.00017,2]
[395015547,1764333039596,-2066.3009224,0.00017,2]
[395015548,1764333039640,-78138.48713625,0.00017,2]
[395015549,1764333039751,-263.09305586,0.00017,2]
[395015550,1764333039762,-10860.27864207,0.00017,2]
[395015551,1764333039773,-507.42834718,0.00017,2]
[395015552,1764333039865,-98630.28116651,0.00017,2]
[395015553,1764333039875,-117243.71388833,0.00017,2]
[395015554,1764333039884,-170.17082263,0.000179,2]
[395015555,1764333039894,-172.36582551,0.00018,2]
[395015556,1764333039904,-886.47962144,0.00018,2]
[395015557,1764333039913,-1182.43665506,0.00018,2]
[395015558,1764333039923,-1767.42595043,0.000181,2]
[395015559,1764333039932,-500.0,0.00020274,2]
[395015560,1764333039941,-170.17082259,0.000225,7]
[395015561,1764333039950,-557.0737832,0.00023484,2]
[395015562,1764333039960,-500.0,0.00023895,2]
[395015563,1764333039969,-50985.8051575,0.000248,3]
[395015564,1764333039979,-500.0,0.00025851,7]
[395015565,1764333039988,-500.0,0.00026728,7]
[395015566,1764333039997,-500.0,0.00026751,7]
[395015567,1764333040006,-170.17082259,0.000271,14]
[395015568,1764333040016,-8497.63419291,0.0002719,3]
[395015569,1764333040025,-500.0,0.000272,7]
[395015570,1764333040035,-500.0,0.00027397,5]
[395015571,1764333040044,-530.63479076,0.00027671,5]
[395015572,1764333040054,-529.77671356,0.000278,7]
[395015573,1764333040063,-215.11909571,0.00028,2]
[395015574,1764333040072,-500.0,0.00028564,7]
[395015575,1764333040082,-14910.08235677,0.000295,120]
[395015576,1764333040095,-500.0,0.00029801,7]
[395015577,1764333040104,-157.28534256,0.00029921,2]
[395015578,1764333040117,-8497.63419291,0.0002999,3]
[395015579,1764333040127,-650.97737282,0.0003,30]
[395015580,1764333040136,-216.422,0.00030288,7]
[395015581,1764333040145,-539.49898062,0.00030314,7]
[395015582,1764333040155,-537.22925401,0.00030479,7]
[395015583,1764333040164,-544.94079662,0.00030985,7]
[395015584,1764333040173,-500.0,0.00031318,7]
[395015585,1764333040182,-170.17082259,0.000317,21]
[395015586,1764333040192,-13274.58425367,0.00032,120]
[395015587,1764333040202,-500.0,0.00032025,7]
[395015588,1764333040212,-516.589428,0.00032341,7]
[395015589,1764333040222,-166.0,0.00033,14]
[395015590,1764333040232,-10182.38772304,0.000349,120]
[395015591,1764333040242,-152.89310882,0.00035,4]
[395015592,1764333040252,-10091.57464533,0.00036,120]
[395015593,1764333040262,-170.17082259,0.000363,27]
[395015594,1764333040271,-215.03564916,0.00036359,120]
[395015595,1764333040281,-116176.80276661,0.00036795,2]
[395015596,1764333040291,-21684.40126804,0.00036865,2]
[395015597,1764333040301,-28832.54671815,0.00036878,4]
[395015601,1764333042870,-729.36723541,0.00036878,4]
[395015602,1764333042882,-2119.57214492,0.00036878,4]
[395015612,1764333045604,-1693.178389,0.00036878,4]
[395015613,1764333045771,-986.89522002,0.00036878,4]
[395015617,1764333671972,523.76,0.00013699,2]
[395015618,1764333894776,500.0,0.00022,30]
[395015623,1764334231740,-500.0,0.00016999,2]
[395015624,1764334231749,-299.21,0.00017618,2]
[395015625,1764334231758,-1843.99503508,0.000183,2]
[395015626,1764334231768,-299.21,0.00018545,2]
[395015627,1764334231777,-195.0,0.00018699,2]
[395015628,1764334231786,-299.21,0.00019472,2]
[395015629,1764334231795,-19787.23607137,0.00019533,2]
[395015630,1764334231808,-217.77748147,0.00019998,2]
[395015631,1764334231819,-500.0,0.00020098,2]
[395015632,1764334231829,-500.0,0.00020177,2]
[395015633,1764334231839,-523.76,0.00020187,2]
[395015634,1764334231849,-500.0,0.00020228,2]
[395015635,1764334231859,-500.0,0.00020381,2]
[395015636,1764334231868,-299.21,0.00020399,2]
[395015638,1764334231878,-530.45839572,0.0002053,2]
[395015640,1764334231888,-500.0,0.00020741,2]
[395015642,1764334231897,-500.0,0.0002075,2]
[395015644,1764334231906,-500.0,0.00020753,2]
[395015645,1764334231916,-500.0,0.0002095,2]
[395015646,1764334231925,-500.0,0.00021001,2]
[395015648,1764334231934,-500.0,0.00021088,2]
[395015650,1764334231943,-500.0,0.00021185,2]
[395015652,1764334231952,-7492.19,0.00021267,2]
[395015654,1764334231961,-524.56,0.0002129,2]
[395015656,1764334231970,-4543.86,0.0002129,2]
[395015658,1764334231979,-550.0,0.00021326,2]
[395015660,1764334231988,-299.21,0.00021326,2]
[395015662,1764334231996,-500.0,0.00021398,2]
[395015664,1764334232006,-500.0,0.00021409,2]
[395015666,1764334232015,-289.97278154,0.0002144,2]
[395015668,1764334232024,-500.0,0.0002183,2]
[395015670,1764334232034,-5567.26195793,0.00021861,2]
[395015672,1764334232043,-150.0,0.00022,14]
[395015674,1764334232052,-500.0,0.00022077,2]
[395015676,1764334232061,-500.0,0.00022133,2]
[395015678,1764334232070,-299.21,0.00022254,2]
[395015680,1764334232079,-500.0,0.00022304,2]
[395015682,1764334232088,-1687.45304419,0.00022542,2]
[395015683,1764334232097,-500.0,0.00022665,2]
[395015684,1764334232106,-217.77748147,0.0002279,2]
[395015685,1764334232115,-500.0,0.0002289,2]
[395015686,1764334232124,-500.0,0.00023133,2]
[395015687,1764334232132,-299.21,0.00023181,2]
[395015688,1764334232142,-500.0,0.00023212,2]
[395015689,1764334232151,-500.0,0.00023249,2]
[395015690,1764334232160,-3964.18156595,0.00023299,2]
[395015691,1764334232169,-250.0,0.00023525,2]
[395015692,1764334232178,-427.35550804,0.00023898,2]
[395015693,1764334232187,-500.0,0.00023986,2]
[395015694,1764334232196,-299.21,0.00024108,2]
[395015695,1764334232205,-500.0,0.00024426,2]
[395015696,1764334232214,-519.62868905,0.00024714,2]
[395015697,1764334232223,-500.0,0.00024905,2]
[395015698,1764334232232,-299.21,0.00025035,2]
[395015699,1764334232241,-500.0,0.00025336,7]
[395015700,1764334232250,-500.0,0.00025357,7]
[395015701,1764334232259,-500.0,0.00025449,7]
[395015702,1764334232268,-500.0,0.00025531,7]
[395015703,1764334232277,-597.596507,0.00025743,7]
[395015704,1764334232286,-500.0,0.00025839,7]
[395015705,1764334232295,-299.21,0.00025963,2]
[395015706,1764334232304,-6185.5742983,0.00026429,2]
[395015707,1764334232314,-163.4371193,0.00026429,2]
[395015708,1764334232323,-3722.7063803,0.00026429,2]
[395015709,1764334232332,-3897.18,0.00026639,2]
[395015710,1764334232342,-523.76,0.00026676,2]
[395015711,1764334232351,-500.0,0.00026725,7]
[395015712,1764334232360,-299.21,0.0002689,2]
[395015714,1764334232369,-500.0,0.00026909,7]
[395015715,1764334232378,-500.0,0.00026912,7]
[395015717,1764334232388,-500.0,0.00027131,7]
[395015719,1764334232397,-500.0,0.0002718,7]
[395015720,1764334232407,-500.0,0.00027189,2]
[395015721,1764334232415,-500.0,0.00027397,8]
[395015722,1764334232424,-500.0,0.00027443,7]
[395015723,1764334232434,-216.10174928,0.00027527,7]
[395015724,1764334232487,-283.89825072,0.00027527,7]
[395015725,1764334232497,-299.21,0.00027817,2]
[395015726,1764334232506,-143.23574129,0.00028197,7]
[395015727,1764334232518,-356.76425871,0.00028197,7]
[395015728,1764334232527,-889.25305166,0.00028653,2]
[395015729,1764334232538,-803.67,0.00028653,2]
[395015730,1764334232552,-777.09694834,0.00028653,2]
[395015731,1764334232561,-299.21,0.00028744,2]
[395015732,1764334232571,-500.0,0.0002891,7]
[395015733,1764334232580,-500.0,0.00028983,7]
[395015734,1764334232589,-500.0,0.00029636,7]
[395015735,1764334232598,-299.21,0.00029672,2]
[395015736,1764334232608,-3722.7063803,0.00029838,2]
[395015737,1764334232616,-500.0,0.00029843,7]
[395015738,1764334232625,-326.18891175,0.00029866,2]
[395015739,1764334232635,-500.0,0.00029866,2]
[395015740,1764334232643,-500.0,0.00029866,2]
[395015741,1764334232653,-201.45863048,0.00029866,2]
[395015742,1764334232672,-500.0,0.00029866,2]
[395015743,1764334232681,-500.0,0.00029866,2]
[395015744,1764334232690,-500.0,0.00029866,2]
[395015745,1764334232699,-500.0,0.00029866,2]
[395015746,1764334232710,-500.0,0.00029866,2]
[395015747,1764334232719,-500.0,0.00029866,2]
[395015748,1764334232729,-500.0,0.00029866,2]
[395015749,1764334232738,-500.0,0.00029866,2]
[395015750,1764334232747,-500.0,0.00029866,2]
[395015751,1764334232756,-500.0,0.00029866,2]
[395015752,1764334232765,-537.79580176,0.00029866,2]
[395015753,1764334232775,-500.0,0.00029866,2]
[395015754,1764334232784,-500.0,0.00029866,2]
[395015755,1764334232793,-500.0,0.00029866,2]
[395015756,1764334232806,-500.0,0.00029866,2]
[395015757,1764334232816,-500.0,0.00029866,2]
[395015758,1764334232825,-500.0,0.00029866,2]
[395015759,1764334232835,-500.0,0.00029866,2]
[395015760,1764334232844,-500.0,0.00029866,2]
[395015761,1764334232853,-500.0,0.00029866,2]
[395015762,1764334232862,-500.0,0.00029866,2]
[395015763,1764334232871,-500.0,0.00029866,2]
[395015764,1764334232882,-214.02281543,0.00029866,2]
[395015765,1764334232891,-500.0,0.00029866,2]
[395015766,1764334232900,-500.0,0.00029866,2]
[395015767,1764334232909,-500.0,0.00029866,2]
[395015768,1764334232918,-500.0,0.00029866,2]
[395015769,1764334232928,-500.0,0.00029866,2]
[395015770,1764334232937,-500.0,0.00029866,2]
[395015771,1764334232947,-500.0,0.00029866,2]
[395015772,1764334232958,-500.0,0.00029866,2]
[395015773,1764334232967,-500.0,0.00029866,2]
[395015774,1764334232976,-500.0,0.00029866,2]
[395015775,1764334232985,-500.0,0.00029866,2]
[395015776,1764334232994,-500.0,0.00029866,2]
[395015777,1764334233003,-500.0,0.00029866,2]
[395015778,1764334233012,-500.0,0.00029866,2]
[395015779,1764334233021,-500.0,0.00029866,2]
[395015780,1764334233034,-500.0,0.00029866,2]
[395015781,1764334233044,-500.0,0.00029866,2]
[395015782,1764334233054,-500.0,0.00029866,2]
[395015783,1764334233063,-500.0,0.00029866,2]
[395015784,1764334233073,-500.0,0.00029866,2]
[395015785,1764334233082,-500.0,0.00029866,2]
[395015786,1764334233092,-500.0,0.00029866,2]
[395015787,1764334233101,-500.0,0.00029866,2]
[395015788,1764334233110,-500.0,0.00029866,2]
[395015789,1764334233119,-550.0,0.00029866,2]
[395015790,1764334233129,-500.0,0.00029866,2]
[395015791,1764334233138,-500.0,0.00029866,2]
[395015792,1764334233148,-500.0,0.00029866,2]
[395015793,1764334233157,-500.0,0.00029866,2]
[395015794,1764334233166,-6185.5742983,0.00029868,2]
[395015795,1764334233175,-500.0,0.00029896,7]
[395015796,1764334233185,-500.0,0.0002996,7]
[395015797,1764334233194,-500.0,0.00030079,7]
[395015798,1764334233203,-500.0,0.00030164,7]
[395015799,1764334233212,-500.0,0.00030339,7]
[395015800,1764334233221,-299.21,0.00030599,2]
[395015801,1764334233231,-500.0,0.00030796,7]
[395015802,1764334233240,-151.0,0.00030819,7]
[395015803,1764334233249,-500.0,0.00030822,7]
[395015804,1764334233259,-500.0,0.00030958,7]
[395015805,1764334233268,-500.0,0.00030982,7]
[395015806,1764334233601,-500.0,0.00031037,7]
[395015807,1764334233616,-500.0,0.00031056,7]
[395015808,1764334233626,-200.0,0.00031198,2]
[395015809,1764334233635,-500.0,0.00031272,7]
[395015810,1764334233644,-500.0,0.00031391,7]
[395015811,1764334233653,-299.21,0.00031526,2]
[395015812,1764334233662,-4043.61,0.00031562,2]
[395015813,1764334233670,-1000.0,0.00031699,7]
[395015814,1764334233679,-500.0,0.00031779,7]
[395015815,1764334233691,-216.40784114,0.00032,120]
[395015816,1764334233701,-231.23387454,0.00032,120]
[395015817,1764334233710,-500.0,0.00032009,7]
[395015818,1764334233719,-500.0,0.00032018,7]
[395015819,1764334233729,-152.84,0.00032033,2]
[395015820,1764334233738,-500.0,0.00032174,7]
[395015821,1764334233747,-500.0,0.0003224,7]
[395015822,1764334233757,-1000.0,0.0003234,7]
[395015823,1764334233766,-299.21,0.00032453,2]
[395015824,1764334233775,-500.0,0.00032557,7]
[395015825,1764334233784,-500.0,0.00032758,7]
[395015826,1764334233794,-500.0,0.00032963,7]
[395015827,1764334233811,-1000.0,0.00032999,7]
[395015828,1764334233822,-523.76,0.00033165,2]
[395015829,1764334233832,-500.0,0.00033166,7]
[395015830,1764334233841,-551.939878,0.00033197,7]
[395015831,1764334233851,-500.0,0.000332,7]
[395015832,1764334233861,-3722.7063803,0.00033247,2]
[395015833,1764334233870,-6185.5742983,0.00033308,2]
[395015834,1764334233881,-500.0,0.00033357,7]
[395015835,1764334233893,-299.21,0.0003338,2]
[395015836,1764334233903,-500.0,0.00033669,7]
[395015837,1764334233912,-500.0,0.00033766,7]
[395015838,1764334233922,-500.0,0.0003387,7]
[395015839,1764334233931,-500.0,0.00033953,7]
[395015840,1764334233941,-500.0,0.00034111,7]
[395015841,1764334233951,-500.0,0.00034142,7]
[395015842,1764334233960,-500.0,0.00034157,7]
[395015843,1764334233970,-299.21,0.00034308,2]
[395015844,1764334233979,-500.0,0.00034373,7]
[395015845,1764334233988,-252.429,0.00034487,39]
[395015846,1764334233997,-872.71676128,0.00034706,7]
[395015847,1764334234007,-500.0,0.00034817,7]
[395015848,1764334234016,-500.0,0.00034919,7]
[395015849,1764334234025,-174.0,0.0003505,120]
[395015850,1764334234035,-174.0,0.0003505,120]
[395015851,1764334234045,-174.0,0.00035078,120]
[395015852,1764334234054,-260.0,0.00035078,120]
[395015853,1764334234063,-299.21,0.00035235,2]
[395015854,1764334234072,-500.0,0.00035304,30]
[395015855,1764334234081,-999.0,0.00035544,3]
[395015856,1764334234092,-500.0,0.00035616,10]
[395015857,1764334234102,-500.0,0.00035616,10]
[395015858,1764334234112,-500.0,0.00035616,10]
[395015859,1764334234122,-500.0,0.00035616,10]
[395015860,1764334234132,-500.0,0.00035616,10]
[395015861,1764334234141,-500.0,0.00035616,10]
[395015862,1764334234151,-500.0,0.00035616,10]
[395015863,1764334234160,-500.0,0.00035616,10]
[395015864,1764334234169,-380.09360574,0.00035616,10]
[395015865,1764334234239,-119.90639426,0.00035616,10]
[395015866,1764334234248,-550.04558343,0.00035616,10]
[395015867,1764334234257,-500.0,0.00035616,10]
[395015868,1764334234266,-531.2720263,0.00035616,10]
[395015869,1764334234275,-500.0,0.00035616,10]